[Event "*** SCC Grand Prix: Titled Tuesday Blitz"]
[Site "Chess.com"]
[Date "2020.08.11"]
[Round "1"]
[White "Kotofeyca"]
[Black "Love_craft"]
[Result "1-0"]
[WhiteElo "2289"]
[BlackElo "2598"]
[TimeControl "180+1"]
[EndTime "10:07:41 PDT"]
[Termination "Kotofeyca won on time"]

1. d4 {[%clk 0:02:53]} 1... Nf6 {[%clk 0:02:59.9]} 2. c4 {[%clk 0:02:53.1]} 2...
g6 {[%clk 0:02:59.8]} 3. f3 {[%clk 0:02:52.8]} 3... d6 {[%clk 0:02:57.7]} 4. e4
{[%clk 0:02:51.2]} 4... Nbd7 {[%clk 0:02:58.2]} 5. Nc3 {[%clk 0:02:49.5]} 5...
c6 {[%clk 0:02:58.3]} 6. Be3 {[%clk 0:02:49.4]} 6... e5 {[%clk 0:02:58]} 7. Nge2
{[%clk 0:02:45.6]} 7... Qe7 {[%clk 0:02:56.5]} 8. Qd2 {[%clk 0:02:40.1]} 8...
Bg7 {[%clk 0:02:55.6]} 9. O-O-O {[%clk 0:02:39.5]} 9... h5 {[%clk 0:02:49.1]}
10. Kb1 {[%clk 0:02:37.3]} 10... a6 {[%clk 0:02:47.5]} 11. Nc1 {[%clk
0:02:30.6]} 11... b5 {[%clk 0:02:34.8]} 12. dxe5 {[%clk 0:02:28.1]} 12... dxe5
{[%clk 0:02:31.7]} 13. Nb3 {[%clk 0:02:28.1]} 13... O-O {[%clk 0:02:09.1]} 14.
Qd6 {[%clk 0:02:26.6]} 14... Qxd6 {[%clk 0:02:03]} 15. Rxd6 {[%clk 0:02:25.4]}
15... Nb8 {[%clk 0:01:17.5]} 16. Na5 {[%clk 0:02:19]} 16... Ne8 {[%clk
0:01:02.8]} 17. Rd2 {[%clk 0:02:09.9]} 17... Nc7 {[%clk 0:01:02.1]} 18. Bc5
{[%clk 0:01:52.7]} 18... Re8 {[%clk 0:01:00.4]} 19. Bd6 {[%clk 0:01:51.9]} 19...
Ne6 {[%clk 0:01:00.1]} 20. Bxb8 {[%clk 0:01:48.8]} 20... Rxb8 {[%clk 0:00:45.3]}
21. Nxc6 {[%clk 0:01:48.7]} 21... Rb6 {[%clk 0:00:37.8]} 22. cxb5 {[%clk
0:01:46.1]} 22... axb5 {[%clk 0:00:36.5]} 23. Bxb5 {[%clk 0:01:34.6]} 23... Nd4
{[%clk 0:00:36.3]} 24. Nxd4 {[%clk 0:01:31.7]} 24... exd4 {[%clk 0:00:36.6]} 25.
Bxe8 {[%clk 0:01:31.4]} 25... dxc3 {[%clk 0:00:36.9]} 26. Rc2 {[%clk 0:01:29.1]}
26... Ba6 {[%clk 0:00:31]} 27. Rd1 {[%clk 0:01:16.9]} 27... Rb8 {[%clk
0:00:15.2]} 28. Ba4 {[%clk 0:01:08.1]} 28... cxb2 {[%clk 0:00:14.4]} 29. Bb3
{[%clk 0:01:01.9]} 29... h4 {[%clk 0:00:10.4]} 30. Rd7 {[%clk 0:00:55]} 30...
Be5 {[%clk 0:00:09.5]} 31. Rxb2 {[%clk 0:00:46.9]} 31... Bxb2 {[%clk 0:00:07.6]}
32. Kxb2 {[%clk 0:00:47.4]} 32... g5 {[%clk 0:00:04.8]} 33. Kc3 {[%clk
0:00:42.6]} 33... Rf8 {[%clk 0:00:04.8]} 34. Kd4 {[%clk 0:00:38.9]} 34... Bf1
{[%clk 0:00:04.7]} 35. g3 {[%clk 0:00:38.7]} 35... h3 {[%clk 0:00:04.4]} 36. f4
{[%clk 0:00:35.4]} 36... gxf4 {[%clk 0:00:03.9]} 37. gxf4 {[%clk 0:00:36.3]}
37... Kg7 {[%clk 0:00:04.5]} 38. e5 {[%clk 0:00:35]} 38... Bg2 {[%clk
0:00:04.7]} 39. e6 {[%clk 0:00:33.2]} 39... Rb8 {[%clk 0:00:02.3]} 40. Rxf7+
{[%clk 0:00:31.5]} 40... Kg6 {[%clk 0:00:02.3]} 41. f5+ {[%clk 0:00:31.6]} 41...
Kg5 {[%clk 0:00:02.8]} 42. e7 {[%clk 0:00:31.4]} 42... Kf4 {[%clk 0:00:02.7]}
43. Rf8 {[%clk 0:00:30.4]} 43... Rb4+ {[%clk 0:00:03.3]} 44. Kc3 {[%clk
0:00:29.6]} 44... Re4 {[%clk 0:00:01.8]} 45. f6 {[%clk 0:00:28.4]} 1-0

[Event "*** SCC Grand Prix: Titled Tuesday Blitz"]
[Site "Chess.com"]
[Date "2020.08.11"]
[Round "1"]
[White "DenLaz"]
[Black "Andrii_Prydun"]
[Result "1-0"]
[WhiteElo "2696"]
[BlackElo "2345"]
[TimeControl "180+1"]
[EndTime "10:07:45 PDT"]
[Termination "DenLaz won by resignation"]

1. d4 {[%clk 0:02:59.8]} 1... d5 {[%clk 0:02:59.9]} 2. Bg5 {[%clk 0:02:56.3]}
2... h6 {[%clk 0:02:58.1]} 3. Bh4 {[%clk 0:02:55.6]} 3... c5 {[%clk 0:02:58.3]}
4. c3 {[%clk 0:02:50.4]} 4... cxd4 {[%clk 0:02:57]} 5. cxd4 {[%clk 0:02:49.5]}
5... Nc6 {[%clk 0:02:57]} 6. Nc3 {[%clk 0:02:47.5]} 6... Qa5 {[%clk 0:02:10.4]}
7. e3 {[%clk 0:02:38.1]} 7... Bf5 {[%clk 0:02:05.2]} 8. Qb3 {[%clk 0:02:09.8]}
8... Qb4 {[%clk 0:01:47.6]} 9. Qxb4 {[%clk 0:01:45.7]} 9... Nxb4 {[%clk
0:01:47.1]} 10. Kd2 {[%clk 0:01:45.7]} 10... e6 {[%clk 0:01:42.5]} 11. Bb5+
{[%clk 0:01:43.5]} 11... Nc6 {[%clk 0:01:41.1]} 12. Nf3 {[%clk 0:01:42.2]} 12...
Bd6 {[%clk 0:01:36.9]} 13. Bg3 {[%clk 0:01:37.9]} 13... Bxg3 {[%clk 0:01:35.6]}
14. hxg3 {[%clk 0:01:38.8]} 14... Ne7 {[%clk 0:01:34.2]} 15. Rhc1 {[%clk
0:01:21.7]} 15... f6 {[%clk 0:01:21.1]} 16. Na4 {[%clk 0:01:17.2]} 16... Kf7
{[%clk 0:01:02.8]} 17. Nc5 {[%clk 0:01:15.2]} 17... Rhb8 {[%clk 0:01:01.8]} 18.
Rc3 {[%clk 0:01:10.2]} 18... a6 {[%clk 0:00:51.3]} 19. Be2 {[%clk 0:01:07.4]}
19... Ke8 {[%clk 0:00:33.1]} 20. Nh4 {[%clk 0:00:59.4]} 20... Kf7 {[%clk
0:00:20.2]} 21. Nxf5 {[%clk 0:00:48.5]} 21... Nxf5 {[%clk 0:00:20]} 22. Rac1
{[%clk 0:00:47.7]} 22... Nd6 {[%clk 0:00:17.7]} 23. f3 {[%clk 0:00:44.2]} 23...
Na5 {[%clk 0:00:13.3]} 24. b3 {[%clk 0:00:41.3]} 24... Rc8 {[%clk 0:00:12.6]}
25. Nd7 {[%clk 0:00:18.6]} 25... Rxc3 {[%clk 0:00:11.8]} 26. Rxc3 {[%clk
0:00:19.5]} 26... Rc8 {[%clk 0:00:11.5]} 27. Rxc8 {[%clk 0:00:16.3]} 27... Nxc8
{[%clk 0:00:11.5]} 28. Kc3 {[%clk 0:00:13]} 28... Nc6 {[%clk 0:00:09.3]} 29. Nc5
{[%clk 0:00:12.4]} 29... Nd6 {[%clk 0:00:09.2]} 30. a4 {[%clk 0:00:11.8]} 30...
Ke7 {[%clk 0:00:08.2]} 31. b4 {[%clk 0:00:12.1]} 31... Nf5 {[%clk 0:00:07]} 32.
Nxb7 {[%clk 0:00:08.6]} 32... Nxe3 {[%clk 0:00:06.5]} 33. Bxa6 {[%clk
0:00:08.8]} 33... Nxg2 {[%clk 0:00:06.2]} 34. b5 {[%clk 0:00:08.6]} 34... Nb8
{[%clk 0:00:04.7]} 35. Kb4 {[%clk 0:00:07.8]} 35... f5 {[%clk 0:00:04.4]} 36.
Kc5 {[%clk 0:00:07.9]} 36... f4 {[%clk 0:00:04]} 37. g4 {[%clk 0:00:06.1]} 37...
Ne1 {[%clk 0:00:02.7]} 38. Kb6 {[%clk 0:00:06.6]} 38... Nxf3 {[%clk 0:00:02.1]}
39. Kc7 {[%clk 0:00:07]} 39... Nxd4 {[%clk 0:00:02.2]} 40. Kxb8 {[%clk
0:00:07.1]} 40... f3 {[%clk 0:00:02.1]} 41. b6 {[%clk 0:00:07.6]} 41... Nc6+
{[%clk 0:00:01.7]} 42. Kc7 {[%clk 0:00:07.4]} 42... Nb4 {[%clk 0:00:01.9]} 43.
Bf1 {[%clk 0:00:06.3]} 43... d4 {[%clk 0:00:02.1]} 44. Nc5 {[%clk 0:00:06.5]}
44... Nd5+ {[%clk 0:00:02.2]} 45. Kc6 {[%clk 0:00:06.4]} 45... Ne3 {[%clk
0:00:02.5]} 46. b7 {[%clk 0:00:06.4]} 1-0

[Event "*** SCC Grand Prix: Titled Tuesday Blitz"]
[Site "Chess.com"]
[Date "2020.08.11"]
[Round "1"]
[White "Nara_Kh"]
[Black "1977Ivan"]
[Result "0-1"]
[WhiteElo "2313"]
[BlackElo "2658"]
[TimeControl "180+1"]
[EndTime "10:07:47 PDT"]
[Termination "1977Ivan won by checkmate"]

1. e4 {[%clk 0:02:57.8]} 1... c5 {[%clk 0:02:59.6]} 2. Be2 {[%clk 0:02:57.6]}
2... Nc6 {[%clk 0:02:56.5]} 3. f4 {[%clk 0:02:57.3]} 3... d5 {[%clk 0:02:54.1]}
4. exd5 {[%clk 0:02:56.4]} 4... Qxd5 {[%clk 0:02:52.1]} 5. Nf3 {[%clk
0:02:55.5]} 5... Nf6 {[%clk 0:02:35.3]} 6. Na3 {[%clk 0:02:51.2]} 6... g6 {[%clk
0:02:33.1]} 7. d4 {[%clk 0:02:42.6]} 7... cxd4 {[%clk 0:02:28.6]} 8. Nb5 {[%clk
0:02:40.4]} 8... Qd8 {[%clk 0:02:28]} 9. Nbxd4 {[%clk 0:02:36.9]} 9... Nxd4
{[%clk 0:02:23.5]} 10. Nxd4 {[%clk 0:02:33.6]} 10... Bg7 {[%clk 0:02:22.3]} 11.
O-O {[%clk 0:02:30.1]} 11... O-O {[%clk 0:02:22.3]} 12. c3 {[%clk 0:02:28.5]}
12... Bd7 {[%clk 0:02:18.6]} 13. Bf3 {[%clk 0:02:19.1]} 13... Qc7 {[%clk
0:02:11.4]} 14. Be3 {[%clk 0:02:08.8]} 14... e6 {[%clk 0:02:10.5]} 15. c4 {[%clk
0:01:55.9]} 15... Qxc4 {[%clk 0:02:01.5]} 16. Rc1 {[%clk 0:01:55]} 16... Qb4
{[%clk 0:01:59.4]} 17. Rc7 {[%clk 0:01:54.1]} 17... Qxb2 {[%clk 0:01:47]} 18.
Rxb7 {[%clk 0:01:47.2]} 18... Qxa2 {[%clk 0:01:46.3]} 19. Qd3 {[%clk 0:01:06.1]}
19... Rfd8 {[%clk 0:01:37.5]} 20. Rf2 {[%clk 0:00:58.8]} 20... Qa5 {[%clk
0:01:28.4]} 21. Qb3 {[%clk 0:00:52]} 21... Nd5 {[%clk 0:01:16.8]} 22. Bxd5
{[%clk 0:00:12.8]} 22... Qxd5 {[%clk 0:01:14.2]} 23. Qxd5 {[%clk 0:00:13]} 23...
exd5 {[%clk 0:01:13.8]} 24. Ra2 {[%clk 0:00:12.3]} 24... a5 {[%clk 0:01:12.5]}
25. Kf2 {[%clk 0:00:11.4]} 25... a4 {[%clk 0:01:11.9]} 26. Ke2 {[%clk
0:00:11.2]} 26... Rab8 {[%clk 0:00:56.2]} 27. Ra7 {[%clk 0:00:10.8]} 27... Rb4
{[%clk 0:00:49.1]} 28. Kd3 {[%clk 0:00:10.3]} 28... Bxd4 {[%clk 0:00:46.2]} 29.
Bxd4 {[%clk 0:00:10]} 29... Bf5+ {[%clk 0:00:46.2]} 30. Ke3 {[%clk 0:00:06]}
30... Re8+ {[%clk 0:00:42.8]} 31. Be5 {[%clk 0:00:06.1]} 31... f6 {[%clk
0:00:42.5]} 32. R2xa4 {[%clk 0:00:03]} 32... Rxa4 {[%clk 0:00:41.6]} 33. Rxa4
{[%clk 0:00:03.7]} 33... fxe5 {[%clk 0:00:42]} 34. fxe5 {[%clk 0:00:04.2]} 34...
Rxe5+ {[%clk 0:00:42.2]} 35. Kf3 {[%clk 0:00:04.5]} 35... Re7 {[%clk 0:00:40]}
36. Ra6 {[%clk 0:00:04]} 36... Rd7 {[%clk 0:00:38.5]} 37. Ke3 {[%clk 0:00:04.4]}
37... d4+ {[%clk 0:00:38]} 38. Kd2 {[%clk 0:00:04.8]} 38... Kg7 {[%clk 0:00:37]}
39. Rb6 {[%clk 0:00:04.9]} 39... h5 {[%clk 0:00:37]} 40. Ra6 {[%clk 0:00:04.9]}
40... Kh6 {[%clk 0:00:36.9]} 41. Rb6 {[%clk 0:00:05.3]} 41... Kg5 {[%clk
0:00:36.8]} 42. Ra6 {[%clk 0:00:05.5]} 42... h4 {[%clk 0:00:36.9]} 43. Rb6
{[%clk 0:00:05.6]} 43... d3 {[%clk 0:00:35.9]} 44. Ra6 {[%clk 0:00:05.2]} 44...
Rc7 {[%clk 0:00:35.9]} 45. Ra2 {[%clk 0:00:03.1]} 45... Kf4 {[%clk 0:00:35.3]}
46. Ra4+ {[%clk 0:00:03]} 46... Be4 {[%clk 0:00:35.1]} 47. g3+ {[%clk
0:00:01.4]} 47... hxg3 {[%clk 0:00:34.8]} 48. hxg3+ {[%clk 0:00:02.3]} 48... Kf3
{[%clk 0:00:35.4]} 49. Rb4 {[%clk 0:00:02.1]} 49... Rc2+ {[%clk 0:00:34.5]} 50.
Kd1 {[%clk 0:00:03]} 50... Ra2 {[%clk 0:00:32.8]} 51. Rd4 {[%clk 0:00:02.8]}
51... Ke3 {[%clk 0:00:31.8]} 52. Rc4 {[%clk 0:00:02.6]} 52... Ra1+ {[%clk
0:00:30.4]} 53. Rc1 {[%clk 0:00:03.5]} 53... Bf3+ {[%clk 0:00:30.9]} 54. Ke1
{[%clk 0:00:03.3]} 54... Rxc1# {[%clk 0:00:31.8]} 0-1

[Event "*** SCC Grand Prix: Titled Tuesday Blitz"]
[Site "Chess.com"]
[Date "2020.08.11"]
[Round "1"]
[White "HanSchut"]
[Black "wannabe2700"]
[Result "0-1"]
[WhiteElo "2330"]
[BlackElo "2672"]
[TimeControl "180+1"]
[EndTime "10:07:49 PDT"]
[Termination "wannabe2700 won on time"]

1. e4 {[%clk 0:03:00.9]} 1... c6 {[%clk 0:02:58.3]} 2. d4 {[%clk 0:03:00.4]}
2... d5 {[%clk 0:02:59.2]} 3. exd5 {[%clk 0:03:00.4]} 3... cxd5 {[%clk
0:03:00.1]} 4. c4 {[%clk 0:03:01]} 4... Nf6 {[%clk 0:02:59.5]} 5. Nc3 {[%clk
0:03:01.4]} 5... Nc6 {[%clk 0:02:59.9]} 6. Nf3 {[%clk 0:03:00.9]} 6... Bg4
{[%clk 0:03:00]} 7. cxd5 {[%clk 0:03:01.3]} 7... Nxd5 {[%clk 0:02:59.5]} 8. Qb3
{[%clk 0:03:01.6]} 8... Bxf3 {[%clk 0:03:00]} 9. gxf3 {[%clk 0:03:02.5]} 9... e6
{[%clk 0:02:55.3]} 10. Qxb7 {[%clk 0:02:59.9]} 10... Nxd4 {[%clk 0:02:55.4]} 11.
Bb5+ {[%clk 0:02:57.7]} 11... Nxb5 {[%clk 0:02:55.4]} 12. Qc6+ {[%clk
0:02:58.3]} 12... Ke7 {[%clk 0:02:55.3]} 13. Qxb5 {[%clk 0:02:57]} 13... Rc8
{[%clk 0:01:25]} 14. Bg5+ {[%clk 0:02:37.6]} 14... f6 {[%clk 0:01:22.7]} 15.
Nxd5+ {[%clk 0:02:37.1]} 15... Qxd5 {[%clk 0:01:19.7]} 16. Qxd5 {[%clk 0:02:37]}
16... exd5 {[%clk 0:01:20.6]} 17. Be3 {[%clk 0:02:37]} 17... a6 {[%clk
0:01:17.3]} 18. Kd2 {[%clk 0:02:14.4]} 18... Ke6 {[%clk 0:01:12.6]} 19. Kd3
{[%clk 0:02:09.6]} 19... Bd6 {[%clk 0:01:09.3]} 20. Rhe1 {[%clk 0:02:06.2]}
20... Kf5 {[%clk 0:01:06.2]} 21. h3 {[%clk 0:02:00.8]} 21... Be5 {[%clk
0:01:01.8]} 22. Rab1 {[%clk 0:01:50.2]} 22... Rc4 {[%clk 0:01:00.8]} 23. Rec1
{[%clk 0:01:26.8]} 23... Rxc1 {[%clk 0:00:36.7]} 24. Bxc1 {[%clk 0:01:14.5]}
24... Rc8 {[%clk 0:00:36.5]} 25. Bd2 {[%clk 0:01:12.3]} 25... Rc4 {[%clk
0:00:36.2]} 26. b4 {[%clk 0:01:08.7]} 26... Rh4 {[%clk 0:00:35.5]} 27. a4 {[%clk
0:01:08.5]} 27... Rxh3 {[%clk 0:00:33.4]} 28. b5 {[%clk 0:01:08.6]} 28... axb5
{[%clk 0:00:33.5]} 29. axb5 {[%clk 0:01:08.4]} 29... Rxf3+ {[%clk 0:00:32.9]}
30. Ke2 {[%clk 0:01:05.4]} 30... Ra3 {[%clk 0:00:32.1]} 31. b6 {[%clk
0:01:03.6]} 31... h5 {[%clk 0:00:31.1]} 32. b7 {[%clk 0:00:59.6]} 32... Bb8
{[%clk 0:00:30.2]} 33. Be3 {[%clk 0:00:49.9]} 33... g5 {[%clk 0:00:24.8]} 34.
Rb5 {[%clk 0:00:46.3]} 34... Ke4 {[%clk 0:00:17.3]} 35. Rb6 {[%clk 0:00:39.3]}
35... d4 {[%clk 0:00:03.7]} 36. Rb4 {[%clk 0:00:16.4]} 36... Ra2+ {[%clk
0:00:03.6]} 37. Kd1 {[%clk 0:00:13.8]} 37... Kf3 {[%clk 0:00:04.2]} 38. Rxd4
{[%clk 0:00:10.4]} 38... Rb2 {[%clk 0:00:04.6]} 39. Rd7 {[%clk 0:00:09.8]} 39...
h4 {[%clk 0:00:03.3]} 40. Kc1 {[%clk 0:00:10.1]} 40... Rb5 {[%clk 0:00:03]} 41.
Rh7 {[%clk 0:00:09]} 41... h3 {[%clk 0:00:03.2]} 42. Rxh3+ {[%clk 0:00:07.5]}
42... Ke4 {[%clk 0:00:03.8]} 43. Rh7 {[%clk 0:00:08]} 43... f5 {[%clk
0:00:03.9]} 44. Kc2 {[%clk 0:00:07.8]} 44... f4 {[%clk 0:00:04.2]} 45. Bd2
{[%clk 0:00:05.3]} 45... Kf3 {[%clk 0:00:05.1]} 46. Rh2 {[%clk 0:00:03]} 46...
Rxb7 {[%clk 0:00:04.7]} 47. Kd3 {[%clk 0:00:01.3]} 47... g4 {[%clk 0:00:05.3]}
0-1

[Event "*** SCC Grand Prix: Titled Tuesday Blitz"]
[Site "Chess.com"]
[Date "2020.08.11"]
[Round "1"]
[White "serena-maria"]
[Black "xamax2000"]
[Result "0-1"]
[WhiteElo "2265"]
[BlackElo "2613"]
[TimeControl "180+1"]
[EndTime "10:07:49 PDT"]
[Termination "xamax2000 won by checkmate"]

1. Nf3 {[%clk 0:03:00.2]} 1... Nf6 {[%clk 0:02:55.5]} 2. g3 {[%clk 0:03:00]}
2... g6 {[%clk 0:02:55.6]} 3. Bg2 {[%clk 0:03:00.3]} 3... Bg7 {[%clk 0:02:55.8]}
4. O-O {[%clk 0:03:00.8]} 4... O-O {[%clk 0:02:56.4]} 5. c4 {[%clk 0:03:00.4]}
5... d6 {[%clk 0:02:56.6]} 6. Nc3 {[%clk 0:02:57.7]} 6... e5 {[%clk 0:02:56]} 7.
d3 {[%clk 0:02:54.3]} 7... a5 {[%clk 0:02:49.8]} 8. Rb1 {[%clk 0:02:53.4]} 8...
Na6 {[%clk 0:02:27.6]} 9. a3 {[%clk 0:02:52.9]} 9... c6 {[%clk 0:02:26.9]} 10.
b4 {[%clk 0:02:48.5]} 10... axb4 {[%clk 0:02:27.8]} 11. axb4 {[%clk 0:02:49]}
11... Re8 {[%clk 0:02:28.3]} 12. Qb3 {[%clk 0:02:33.8]} 12... Nc7 {[%clk
0:02:27.7]} 13. b5 {[%clk 0:02:18.7]} 13... d5 {[%clk 0:02:01.3]} 14. bxc6
{[%clk 0:02:16.5]} 14... bxc6 {[%clk 0:02:00.8]} 15. cxd5 {[%clk 0:02:16.3]}
15... cxd5 {[%clk 0:02:01.7]} 16. Bg5 {[%clk 0:02:04.7]} 16... h6 {[%clk
0:01:58.5]} 17. Bxf6 {[%clk 0:02:03.7]} 17... Bxf6 {[%clk 0:01:59.4]} 18. Nd2
{[%clk 0:01:30.5]} 18... Be6 {[%clk 0:01:58.7]} 19. Qc2 {[%clk 0:00:55.4]} 19...
Rc8 {[%clk 0:01:57.6]} 20. Rb7 {[%clk 0:00:51.3]} 20... Bg7 {[%clk 0:01:53.6]}
21. Qa4 {[%clk 0:00:46]} 21... f5 {[%clk 0:01:45.5]} 22. Nb3 {[%clk 0:00:38.1]}
22... e4 {[%clk 0:01:42.2]} 23. d4 {[%clk 0:00:38.2]} 23... Bd7 {[%clk
0:01:35.7]} 24. Qa5 {[%clk 0:00:32.3]} 24... Bc6 {[%clk 0:01:33.5]} 25. Ra7
{[%clk 0:00:29.4]} 25... Ne6 {[%clk 0:01:29.7]} 26. e3 {[%clk 0:00:27.8]} 26...
Rb8 {[%clk 0:01:28.1]} 27. Qxd8 {[%clk 0:00:20]} 27... Rexd8 {[%clk 0:01:27.8]}
28. Na5 {[%clk 0:00:19.8]} 28... Ba8 {[%clk 0:01:25.6]} 29. Rc1 {[%clk
0:00:16.7]} 29... Rdc8 {[%clk 0:01:24.7]} 30. Bf1 {[%clk 0:00:16.9]} 30... Bf8
{[%clk 0:01:23.4]} 31. Ba6 {[%clk 0:00:15.5]} 31... Rc7 {[%clk 0:01:12.3]} 32.
Rxc7 {[%clk 0:00:05.8]} 32... Nxc7 {[%clk 0:01:13.2]} 33. Be2 {[%clk 0:00:05.6]}
33... Ba3 {[%clk 0:01:03.8]} 34. Rc2 {[%clk 0:00:04.3]} 34... Bb4 {[%clk
0:00:57.4]} 35. Nb3 {[%clk 0:00:04.6]} 35... Ne6 {[%clk 0:00:52.3]} 36. Nb5
{[%clk 0:00:03.4]} 36... Kf7 {[%clk 0:00:49.4]} 37. Nc5 {[%clk 0:00:03.4]} 37...
Bxc5 {[%clk 0:00:15.6]} 38. dxc5 {[%clk 0:00:04.3]} 38... Bc6 {[%clk 0:00:16.1]}
39. Nd6+ {[%clk 0:00:04.2]} 39... Ke7 {[%clk 0:00:15.6]} 40. Ba6 {[%clk
0:00:04.1]} 40... Rb1+ {[%clk 0:00:14.8]} 41. Kg2 {[%clk 0:00:04]} 41... d4
{[%clk 0:00:15.7]} 42. exd4 {[%clk 0:00:03.8]} 42... e3+ {[%clk 0:00:15.3]} 43.
Kh3 {[%clk 0:00:02.8]} 43... Nxd4 {[%clk 0:00:15.8]} 44. Ra2 {[%clk 0:00:02.2]}
44... g5 {[%clk 0:00:11.7]} 45. fxe3 {[%clk 0:00:02.3]} 45... Nf3 {[%clk
0:00:11.9]} 46. g4 {[%clk 0:00:02.5]} 46... Rg1 {[%clk 0:00:11.7]} 47. gxf5
{[%clk 0:00:01.5]} 47... g4# {[%clk 0:00:11.7]} 0-1

[Event "*** SCC Grand Prix: Titled Tuesday Blitz"]
[Site "Chess.com"]
[Date "2020.08.11"]
[Round "1"]
[White "Adham_Fawzy"]
[Black "Tashik"]
[Result "1/2-1/2"]
[WhiteElo "2726"]
[BlackElo "2374"]
[TimeControl "180+1"]
[EndTime "10:07:50 PDT"]
[Termination "Game drawn by repetition"]

1. e4 {[%clk 0:03:00.9]} 1... e5 {[%clk 0:02:03.6]} 2. Nf3 {[%clk 0:03:00.2]}
2... Nc6 {[%clk 0:02:00.8]} 3. Bb5 {[%clk 0:02:59.9]} 3... a6 {[%clk 0:01:59.1]}
4. Bxc6 {[%clk 0:03:00.2]} 4... dxc6 {[%clk 0:01:58.2]} 5. O-O {[%clk
0:03:01.1]} 5... Qf6 {[%clk 0:01:56.2]} 6. d4 {[%clk 0:03:00.7]} 6... exd4
{[%clk 0:01:56.7]} 7. e5 {[%clk 0:03:01.6]} 7... Qg6 {[%clk 0:01:50.2]} 8. Qxd4
{[%clk 0:03:00]} 8... Be7 {[%clk 0:01:41.2]} 9. Bf4 {[%clk 0:02:48.6]} 9... Nh6
{[%clk 0:01:36.4]} 10. Nc3 {[%clk 0:02:47.7]} 10... O-O {[%clk 0:01:35]} 11.
Bxh6 {[%clk 0:02:39.6]} 11... Qxh6 {[%clk 0:01:34.2]} 12. Ne4 {[%clk 0:02:32.1]}
12... Bf5 {[%clk 0:01:31.7]} 13. Rfe1 {[%clk 0:02:31.9]} 13... Qg6 {[%clk
0:01:30]} 14. Ng3 {[%clk 0:02:26.1]} 14... Bxc2 {[%clk 0:01:27.2]} 15. Qd7
{[%clk 0:02:24.4]} 15... Qe6 {[%clk 0:01:20.8]} 16. Qxc7 {[%clk 0:02:17.6]}
16... Rfd8 {[%clk 0:01:08.7]} 17. Qxb7 {[%clk 0:02:07.5]} 17... Rab8 {[%clk
0:01:08.5]} 18. Qxa6 {[%clk 0:02:06.6]} 18... Rxb2 {[%clk 0:01:09.1]} 19. Re2
{[%clk 0:01:54.9]} 19... Bd3 {[%clk 0:01:06.1]} 20. Qxd3 {[%clk 0:01:40.8]}
20... Rxd3 {[%clk 0:01:04.8]} 21. Rxb2 {[%clk 0:01:41.3]} 21... h6 {[%clk
0:01:02.7]} 22. a4 {[%clk 0:01:38.3]} 22... Qd5 {[%clk 0:01:02]} 23. Rba2 {[%clk
0:01:22.3]} 23... Rd1+ {[%clk 0:00:56.1]} 24. Nf1 {[%clk 0:01:19.7]} 24... Rxa1
{[%clk 0:00:53.3]} 25. Rxa1 {[%clk 0:01:19.2]} 25... Bb4 {[%clk 0:00:52.8]} 26.
Ne3 {[%clk 0:01:10.7]} 26... Qb3 {[%clk 0:00:49.5]} 27. Nd4 {[%clk 0:00:35.1]}
27... Qb2 {[%clk 0:00:43.5]} 28. Ndc2 {[%clk 0:00:31.2]} 28... Bc5 {[%clk
0:00:36.2]} 29. Rf1 {[%clk 0:00:17.3]} 29... Qa2 {[%clk 0:00:34.5]} 30. Ra1
{[%clk 0:00:14.2]} 30... Qb2 {[%clk 0:00:29.3]} 31. Rd1 {[%clk 0:00:14.1]} 31...
Kh7 {[%clk 0:00:12.8]} 32. g3 {[%clk 0:00:13.6]} 32... Bxe3 {[%clk 0:00:10.5]}
33. Nxe3 {[%clk 0:00:14.5]} 33... Qa3 {[%clk 0:00:08.7]} 34. Rd7 {[%clk
0:00:12.3]} 34... Qxa4 {[%clk 0:00:08.6]} 35. Rxf7 {[%clk 0:00:11.5]} 35... Qa1+
{[%clk 0:00:09.1]} 36. Kg2 {[%clk 0:00:11.8]} 36... Qxe5 {[%clk 0:00:09.4]} 37.
h4 {[%clk 0:00:11.2]} 37... Kg6 {[%clk 0:00:07.5]} 38. Rf4 {[%clk 0:00:10.3]}
38... c5 {[%clk 0:00:07]} 39. Rg4+ {[%clk 0:00:10]} 39... Kh7 {[%clk 0:00:06.9]}
40. Rc4 {[%clk 0:00:10.4]} 40... Qd6 {[%clk 0:00:05.5]} 41. Kf3 {[%clk
0:00:11.3]} 41... g6 {[%clk 0:00:05.3]} 42. Ke2 {[%clk 0:00:12.2]} 42... h5
{[%clk 0:00:05.6]} 43. Rf4 {[%clk 0:00:10.7]} 43... Kg7 {[%clk 0:00:04.7]} 44.
Rc4 {[%clk 0:00:11.6]} 44... Qe7 {[%clk 0:00:04.2]} 45. Rf4 {[%clk 0:00:12.5]}
45... Qd6 {[%clk 0:00:04.3]} 46. Rc4 {[%clk 0:00:12.6]} 46... Qb6 {[%clk
0:00:04.6]} 47. Rf4 {[%clk 0:00:13.5]} 47... Qb2+ {[%clk 0:00:05.1]} 48. Kf3
{[%clk 0:00:14.4]} 48... Qb3 {[%clk 0:00:05.4]} 49. Rc4 {[%clk 0:00:15.3]} 49...
Qb6 {[%clk 0:00:05.4]} 50. Ke2 {[%clk 0:00:16.2]} 50... Qc6 {[%clk 0:00:05.7]}
51. Kd3 {[%clk 0:00:16.3]} 51... Qd6+ {[%clk 0:00:06]} 52. Ke2 {[%clk
0:00:17.2]} 1/2-1/2